bitfinex-derivatives/quotes_ETHF0:USTF0_20260223
["timestamp","ask_amount","ask_price","bid_price","bid_amount"]
[1771868007296,3.4566414,1857.5,1856.2,5.1997344]
[1771868007297,4.89671004,1857.1,1856.2,5.1997344]
[1771868007697,4.89671004,1857.3,1856.2,5.1997344]
[1771868007897,4.89671004,1857.3,1856.3,5.19411194]
[1771868008097,4.89671004,1857.3,1856.4,5.19411194]
[1771868008591,0.00508836,1857.5,1856.6,5.19411194]
[1771868008592,4.9017984,1857.5,1856.6,5.19411194]
[1771868008798,4.9017984,1857.5,1856.6,5.20045314]
[1771868010805,4.9017984,1857.5,1856.6,5.19411194]
[1771868011894,0.00508836,1857.5,1856.8,5.19411194]
[1771868012097,4.9017984,1857.5,1856.8,5.19411194]
[1771868012500,0.00508836,1857.5,1856.9,5.19411194]
[1771868012804,0.00508836,1857.5,1857.0,5.19411194]
[1771868013004,4.89671004,1857.9,1857.3,5.19411194]
[1771868013307,4.89671004,1857.9,1857.0,12.20016583]
[1771868013607,4.89671004,1858.2,1857.0,5.19411194]
[1771868014105,4.90098052,1858.2,1857.0,5.19411194]
[1771868014698,4.89671004,1858.0,1857.0,5.19411194]
[1771868015103,4.89671004,1858.0,1857.0,5.20045314]
[1771868015301,4.89671004,1858.0,1857.0,5.19411194]
[1771868015506,4.89671004,1858.0,1857.2,5.19411194]
[1771868017403,4.89671004,1857.8,1856.7,5.19411194]
[1771868017609,4.89671004,1857.6,1856.7,5.19411194]
[1771868018000,4.89671004,1857.6,1856.9,5.19411194]
[1771868018503,4.89671004,1857.6,1856.9,5.20045314]
[1771868018900,4.89671004,1857.9,1856.9,5.19411194]
[1771868020003,4.89671004,1857.3,1856.4,5.19411194]
[1771868022411,4.89671004,1856.9,1856.2,0.00562246]
[1771868022708,4.90279195,1856.9,1856.2,0.00562246]
[1771868023310,0.00608191,1856.9,1856.2,5.1997344]
[1771868023713,4.89671004,1857.2,1856.7,0.0063412]
[1771868023914,3.45155304,1857.6,1856.2,5.1997344]
[1771868023915,4.89671004,1857.5,1856.4,5.19411194]
[1771868024412,4.89671004,1857.5,1856.8,5.19411194]
[1771868024809,4.90366784,1857.5,1856.9,5.19411194]
[1771868025413,0.0069578,1857.5,1856.9,5.19411194]
[1771868025906,0.0069578,1857.5,1857.2,5.19411194]
[1771868026114,4.89671004,1857.9,1857.2,5.19411194]
[1771868026415,4.89671004,1858.2,1857.4,5.19411194]
[1771868026914,4.89671004,1858.2,1857.5,5.20045314]
[1771868027106,4.90079334,1858.2,1857.5,5.19411194]
[1771868027308,4.90079334,1858.2,1857.6,5.20045314]
[1771868027506,4.90079334,1858.2,1857.6,5.19799189]
[1771868027912,0.0040833,1858.2,1857.8,4.97520237]
[1771868028306,4.70316073,1858.4,1858.0,0.0063412]
[1771868028505,4.70316073,1858.4,1857.8,4.96886117]
[1771868028808,4.97224073,1858.4,1857.6,0.00387995]
[1771868029311,4.70316073,1858.1,1857.2,4.96886117]
[1771868029515,4.70316073,1857.9,1857.2,4.96886117]
[1771868030310,4.70712232,1857.9,1857.2,0.00585994]
[1771868030516,4.70712232,1857.9,1857.2,4.97472111]
[1771868031116,4.70316073,1857.7,1857.0,4.96886117]
[1771868031313,0.00396159,1857.9,1856.8,4.96886117]
[1771868031314,4.70316073,1857.5,1856.8,4.96886117]
[1771868032219,4.70316073,1857.5,1856.8,4.97390813]
[1771868032718,4.70316073,1857.7,1856.8,4.97390813]
[1771868034918,5.18282092,1857.6,1856.8,4.97390813]
[1771868035219,4.70316073,1857.6,1856.8,4.97390813]
[1771868035517,4.70316073,1857.4,1856.8,0.00504696]
[1771868035718,4.70316073,1857.2,1856.5,4.96886117]
[1771868036519,4.70316073,1857.4,1856.5,4.96886117]
[1771868036713,4.70316073,1857.4,1856.5,4.97268867]
[1771868039526,4.70316073,1857.6,1856.5,4.97268867]
[1771868039826,4.70316073,1857.6,1856.7,4.96886117]
[1771868040429,0.26917,1857.7,1856.9,4.96886117]
[1771868040724,0.26917,1857.7,1857.0,7.12963246]
[1771868040921,4.97233073,1857.7,1857.0,7.12963246]
[1771868041226,4.97233073,1857.7,1856.9,4.96886117]
[1771868041821,4.97236073,1857.5,1856.6,4.96886117]
[1771868042726,4.97239073,1857.3,1856.5,0.0038275]
[1771868043119,4.97239073,1857.3,1856.5,4.97268867]
[1771868051329,4.70316073,1857.3,1856.5,4.97268867]
[1771868054331,4.70316073,1857.6,1856.7,4.96886117]
[1771868055029,0.26918,1857.7,1856.9,4.96886117]
[1771868055533,4.70316073,1857.8,1856.9,4.96886117]
[1771868056630,0.00396159,1857.9,1857.1,4.96886117]
[1771868057038,0.26912,1858.1,1857.3,4.96886117]
[1771868057039,4.97228073,1858.1,1857.3,4.96886117]
[1771868057237,4.70316073,1857.7,1857.1,4.96886117]
[1771868058037,4.70981268,1857.7,1857.1,4.96886117]
[1771868058225,4.70981268,1857.7,1856.8,4.67017074]
[1771868058536,4.89320359,1857.5,1856.8,4.67017074]
[1771868059235,4.89985554,1857.7,1856.8,4.67017074]
[1771868059633,4.89320359,1857.5,1856.5,4.67399824]
[1771868060137,4.89320359,1857.5,1856.6,4.76387634]
[1771868060535,4.86496302,1857.3,1856.5,4.76770384]
[1771868060836,0.00665195,1857.7,1856.5,4.76770384]
[1771868061137,4.86496302,1857.3,1856.5,4.76770384]
[1771868061336,4.86496302,1857.1,1856.5,4.76770384]
[1771868065645,4.86496302,1857.4,1856.5,4.76770384]
[1771868066634,4.86496302,1856.8,1856.3,4.76387634]
[1771868066839,4.86496302,1856.8,1856.1,4.76387634]
[1771868067439,4.86496302,1856.8,1855.9,4.76387634]
[1771868067643,4.86496302,1856.6,1855.9,0.00641234]
[1771868067837,4.86496302,1856.6,1855.6,1.40960824]
[1771868067838,4.86496302,1856.2,1855.5,4.76387634]
[1771868068740,4.87024301,1856.2,1855.5,0.00447983]
[1771868068937,4.87024301,1856.2,1855.5,4.76835617]
[1771868069437,4.87024301,1856.2,1855.5,0.00447983]
[1771868070036,4.86496302,1856.0,1855.2,4.76387634]
[1771868071142,4.86496302,1856.0,1855.2,4.76951811]
[1771868072039,4.87024301,1856.2,1855.2,4.76951811]
[1771868073443,5.13963301,1856.2,1855.2,4.76951811]
[1771868074645,4.86496302,1855.9,1855.2,0.00564177]
[1771868079043,4.86496302,1855.9,1855.2,4.76951811]
[1771868079742,4.86496302,1855.7,1855.2,0.00564177]
[1771868080745,2.46678856,1855.4,1854.3,4.76387634]
[1771868080947,2.73629856,1855.4,1854.3,4.76387634]
[1771868081254,9.80019144,1853.5,1852.2,4.76387634]
[1771868081542,3.16320144,1853.8,1852.2,4.76387634]
[1771868081746,3.16945055,1853.5,1852.4,4.76387634]
[1771868082046,3.21907617,1853.3,1852.4,4.76387634]
[1771868082239,3.21907617,1853.3,1852.2,4.76802404]
[1771868082441,0.00624911,1853.5,1852.2,4.76802404]
[1771868082442,7.88968631,1853.2,1852.2,4.76802404]
[1771868082640,3.22532528,1853.5,1852.4,4.76387634]
[1771868082641,0.84368631,1853.1,1852.4,4.76387634]
[1771868082842,11.10876248,1853.0,1852.3,4.76387634]
[1771868083142,11.10409985,1852.9,1852.3,4.76387634]
[1771868083342,7.88968631,1852.8,1852.2,4.76802404]
[1771868083548,7.88968631,1852.7,1852.2,4.76802404]
[1771868083847,6.63712,1853.4,1852.2,0.0041477]
[1771868083848,4.0581729,1852.6,1852.2,0.0041477]
[1771868084049,7.046,1852.9,1852.0,5.60713178]
[1771868084243,7.88970089,1852.8,1852.0,5.60713178]
[1771868084438,4.08173392,1852.7,1852.2,4.76387634]
[1771868084646,7.88975424,1852.6,1852.2,4.76387634]
[1771868084842,5.70883456,1852.5,1852.0,0.84325544]
[1771868085048,5.70883456,1852.5,1852.2,0.00377936]
[1771868085049,4.86496302,1852.5,1852.2,0.00377936]
[1771868085245,4.86496302,1852.5,1852.0,5.60713178]
[1771868085648,4.86496302,1852.5,1852.0,0.84325544]
[1771868086447,4.86496302,1852.5,1852.0,0.84886129]
[1771868086843,4.86496302,1852.3,1852.0,0.84886129]
[1771868087039,4.86496302,1852.1,1851.1,4.76387634]
[1771868087345,4.86496302,1852.6,1851.3,4.76387634]
[1771868087544,5.70893195,1852.5,1851.3,4.76387634]
[1771868087745,5.70893195,1852.4,1851.5,5.09653808]
[1771868087947,4.86496302,1852.4,1851.5,5.09653808]
[1771868088148,5.45889157,1852.8,1851.7,5.09653808]
[1771868088546,5.45889157,1852.8,1851.9,5.09653808]
[1771868089350,5.46338932,1852.8,1851.9,5.09653808]
[1771868090050,0.00449775,1852.8,1851.9,5.09653808]
[1771868090649,0.00449775,1852.8,1852.0,40.8]
[1771868090950,0.00449775,1852.8,1852.1,5.09653808]
[1771868091151,5.46338932,1852.8,1852.1,5.09653808]
[1771868091545,0.00449775,1852.8,1852.1,5.09653808]
[1771868093750,5.45889157,1853.2,1852.1,5.09653808]
[1771868093949,5.45889157,1853.2,1852.3,5.09653808]
[1771868094149,5.45889157,1853.7,1852.3,5.09653808]
[1771868094345,5.45889157,1853.5,1852.3,5.09653808]
[1771868094547,0.84353281,1853.4,1852.5,5.09653808]
[1771868094742,0.00506597,1853.4,1852.5,5.09653808]
[1771868096043,0.00506597,1853.4,1852.7,5.09653808]
[1771868096551,5.45889157,1853.9,1852.7,5.09653808]
[1771868096751,0.84332384,1853.8,1852.7,5.09653808]
[1771868097050,0.84332384,1853.7,1852.7,5.09653808]
[1771868097253,5.45889157,1853.9,1852.9,5.09653808]
[1771868097461,0.00652302,1853.9,1852.9,5.37250251]
[1771868097750,0.00652302,1853.9,1853.1,5.09653808]
[1771868098052,0.00652302,1853.9,1853.3,5.09653808]
[1771868098349,5.45889157,1854.3,1853.4,7.1439818]
[1771868098552,0.84311725,1854.2,1853.5,5.09653808]
[1771868098744,0.84311725,1854.1,1853.5,5.09653808]
[1771868098950,5.45889157,1854.5,1853.5,5.09653808]
[1771868099148,0.84305822,1854.4,1853.5,5.09653808]
[1771868099351,0.84305822,1854.3,1853.5,5.09653808]
[1771868099647,0.00406007,1854.4,1853.7,5.36628808]
[1771868099855,5.45889157,1854.6,1853.7,5.09653808]
[1771868100752,5.46374812,1854.6,1853.7,5.09653808]
[1771868101151,0.00485655,1854.6,1853.7,5.09653808]
[1771868101350,5.45889157,1855.0,1853.9,5.09653808]
[1771868101549,5.45889157,1855.2,1854.1,5.09653808]
[1771868101945,5.45889157,1855.2,1854.3,5.09653808]
[1771868102451,5.45889157,1855.8,1854.7,5.09653808]
[1771868102856,5.45889157,1855.6,1854.7,5.09653808]
[1771868103354,5.46439802,1855.6,1854.7,5.09653808]
[1771868105056,0.00550645,1855.6,1854.9,5.09653808]
[1771868105250,5.46439802,1855.6,1854.9,5.09653808]
[1771868105756,0.00550645,1855.6,1855.0,5.09653808]
[1771868106653,0.00550645,1855.6,1854.8,5.09653808]
[1771868106654,5.46439802,1855.6,1854.8,5.09653808]
[1771868106858,5.45889157,1855.3,1854.5,5.09653808]
[1771868107962,5.45889157,1855.5,1854.7,5.09653808]
[1771868109157,0.00550645,1855.6,1854.7,5.09653808]
[1771868109761,5.46439802,1855.6,1854.7,5.09653808]
[1771868111171,5.73387802,1855.6,1854.7,5.09653808]
[1771868111670,5.73387802,1855.6,1854.4,0.26965]
[1771868111671,5.45889157,1854.8,1854.0,5.09653808]
[1771868111872,5.45889157,1854.6,1854.0,5.09653808]
[1771868112072,0.84263997,1854.5,1854.0,5.09653808]
[1771868112673,6.30153154,1854.5,1854.0,5.09653808]
[1771868112973,0.84263997,1854.4,1854.0,5.10048377]
[1771868113268,6.30153154,1854.4,1853.6,5.09653808]
[1771868113473,0.84263997,1854.3,1853.7,5.09653808]
[1771868114267,0.84263997,1854.3,1853.7,5.10229584]
[1771868114466,6.30550982,1854.3,1853.7,5.10229584]
[1771868114668,6.30153154,1854.2,1853.7,5.10229584]
[1771868114864,0.00397828,1854.3,1853.7,5.10229584]
[1771868115074,0.84305937,1854.2,1853.7,5.10229584]
[1771868115275,0.00397828,1854.3,1853.7,5.10229584]
[1771868115571,0.84299313,1854.2,1853.7,5.10229584]
[1771868115770,0.00397828,1854.3,1853.7,5.10229584]
[1771868115967,0.84299318,1854.2,1853.7,5.10229584]
[1771868116171,0.84303565,1854.1,1853.7,5.10229584]
[1771868116371,0.00397828,1854.3,1853.7,5.10229584]
[1771868116567,0.84298947,1854.2,1853.7,5.10229584]
[1771868116773,0.00397828,1854.3,1853.7,5.10229584]
[1771868116970,0.84299525,1854.2,1853.7,5.10229584]
[1771868117171,0.00397828,1854.3,1853.7,5.10229584]
[1771868118771,5.20114986,1854.2,1853.5,5.21666332]
[1771868119077,5.20114986,1853.9,1852.9,5.21666332]
[1771868119474,5.20114986,1853.9,1853.0,5.21666332]
[1771868119874,5.20114986,1853.9,1853.0,5.22200982]
[1771868120176,5.2350015,1854.3,1853.2,5.23878087]
[1771868120681,5.23102322,1854.1,1853.2,5.23878087]
[1771868120974,5.23102322,1853.9,1853.2,5.23878087]
[1771868121678,5.23102322,1853.9,1853.0,5.24412737]
[1771868122477,5.23102322,1853.6,1853.0,0.0053465]
[1771868122879,5.23102322,1853.6,1853.0,5.24412737]
[1771868123577,5.23102322,1853.6,1853.0,0.0053465]
[1771868124173,5.23102322,1853.6,1852.8,5.23878087]
[1771868125179,5.23102322,1853.6,1852.8,5.24503164]
[1771868125579,5.23102322,1854.1,1853.0,5.23878087]
[1771868125979,5.2350015,1854.3,1853.4,5.23878087]
[1771868126876,5.5046815,1854.3,1853.2,5.23878087]
[1771868127473,5.5046815,1854.3,1853.4,5.23878087]
[1771868129082,5.23102322,1854.1,1853.4,5.23878087]
[1771868129381,0.83537206,1854.0,1853.4,5.23878087]
[1771868129674,0.83537206,1853.9,1853.4,5.23878087]
[1771868129877,0.83537206,1853.8,1853.4,5.23878087]
[1771868130080,0.83523859,1853.7,1853.4,5.23878087]
[1771868130281,5.23102322,1854.0,1853.4,5.23878087]
[1771868130581,6.06634811,1853.9,1853.4,5.23878087]
[1771868130781,0.83532489,1853.8,1853.4,5.23878087]
[1771868131678,6.06634811,1853.8,1852.8,5.24503164]
[1771868131885,6.06634811,1853.7,1852.8,5.24503164]
[1771868132078,0.83532489,1853.6,1852.8,5.24503164]
[1771868132278,0.83532489,1853.5,1852.8,5.24503164]
[1771868132478,0.83532489,1853.4,1852.8,5.24503164]
[1771868132679,5.23102322,1853.7,1852.8,5.24503164]
[1771868132879,0.82952347,1853.6,1852.8,5.24503164]
[1771868133177,6.06054669,1853.5,1852.8,5.24503164]
[1771868133383,5.23102322,1853.3,1852.8,5.24125834]
[1771868133583,6.06054669,1853.2,1852.8,5.24125834]
[1771868133783,0.82952347,1853.1,1852.8,5.24125834]
[1771868134084,5.23102322,1853.2,1852.2,5.23878087]
[1771868134285,5.23102322,1853.0,1852.2,5.23878087]
[1771868134482,0.829214,1852.9,1852.2,5.23878087]
[1771868134681,3.73316361,1853.4,1852.2,5.23878087]
[1771868134682,6.06023722,1852.8,1852.2,5.23878087]
[1771868134875,3.73316361,1853.4,1851.6,5.23878087]
[1771868134876,5.23102322,1852.6,1851.6,5.23878087]
[1771868135080,6.06023722,1852.5,1851.7,5.23878087]
[1771868135389,5.23102322,1853.3,1852.0,5.50878087]
[1771868135784,5.23102322,1853.3,1852.2,5.23878087]
[1771868136284,5.23503554,1853.3,1852.2,5.23878087]
[1771868136479,5.23503554,1853.3,1852.4,5.23878087]
[1771868137179,5.23503554,1853.3,1852.3,0.26996]
[1771868137180,0.00401232,1853.3,1852.6,5.23878087]
[1771868137983,5.23503554,1853.3,1852.6,5.23878087]
[1771868138787,0.00401232,1853.3,1852.6,5.23878087]
[1771868139185,5.23102322,1853.6,1852.6,5.23878087]
[1771868139384,5.23102322,1853.8,1852.6,5.23878087]
[1771868139585,5.23102322,1853.8,1852.8,5.23878087]
[1771868139785,3.46336361,1854.3,1852.8,5.23878087]
[1771868139786,5.23102322,1854.2,1852.8,5.23878087]
[1771868139986,5.23102322,1854.2,1853.0,5.23878087]
[1771868140390,5.23669607,1854.2,1853.0,5.24552007]
[1771868140588,5.23102322,1854.0,1853.0,5.24552007]
[1771868142791,5.23102322,1853.6,1853.0,0.0067392]
[1771868143092,5.23102322,1853.4,1852.6,5.23878087]
[1771868143890,5.23102322,1853.6,1852.6,5.24463375]
[1771868147391,3.73308361,1853.9,1852.6,5.24463375]
[1771868147392,5.23102322,1853.1,1852.6,0.00585288]
[1771868147695,0.26984,1853.2,1852.1,5.23878087]
[1771868147696,5.23102322,1852.9,1852.1,5.23878087]
[1771868147890,5.97429574,1852.8,1852.1,5.23878087]
[1771868148095,0.80305521,1852.7,1852.1,5.23878087]
[1771868148294,0.80305521,1852.6,1852.1,5.23878087]
[1771868148495,0.80305521,1852.5,1852.1,5.2446375]
[1771868148696,0.00582665,1852.6,1852.1,5.2446375]
[1771868148898,0.79325615,1852.5,1852.1,5.2446375]
[1771868149196,0.79312859,1852.4,1852.1,5.2446375]
[1771868149392,5.17706718,1852.6,1852.1,5.2446375]
[1771868149393,0.79312859,1852.3,1852.1,0.00585663]
[1771868149596,0.79312859,1852.2,1851.7,5.11656602]
[1771868149796,0.79312859,1852.1,1851.7,5.11656602]
[1771868150094,5.17124053,1852.4,1851.7,5.11656602]
[1771868150294,0.79253656,1852.3,1851.7,5.11656602]
[1771868150496,0.79253656,1852.2,1851.7,5.11656602]
[1771868150691,0.79253656,1852.1,1851.7,5.12097126]
[1771868150893,5.17124053,1852.4,1851.7,5.12097126]
[1771868151196,5.96336516,1852.3,1851.7,5.12097126]
[1771868151395,0.79212463,1852.2,1851.7,5.12097126]
[1771868151695,5.96336516,1852.1,1851.7,0.00440524]
[1771868151999,5.17124053,1852.5,1851.7,5.12097126]
[1771868152202,5.17124053,1852.3,1851.7,0.00440524]
[1771868152389,5.17124053,1852.1,1851.7,0.00440524]
[1771868152592,5.9628651,1852.0,1851.7,0.00440524]
[1771868152894,0.79162457,1851.9,1851.7,5.12097126]
[1771868153085,5.17124053,1852.2,1851.7,5.12097126]
[1771868153296,5.96201629,1852.1,1851.7,5.12097126]
[1771868153491,0.79077576,1852.0,1851.7,5.12097126]
[1771868153695,5.17124053,1852.1,1851.7,0.00440524]
[1771868153999,0.79047217,1852.0,1851.7,5.12097126]
[1771868154191,0.26994,1852.4,1851.7,5.12097126]
[1771868154192,5.44118053,1852.4,1851.7,5.12097126]
[1771868154392,0.7902708,1852.3,1851.7,5.12097126]
[1771868154592,0.7902708,1852.2,1851.7,5.12097126]
[1771868154792,5.44118053,1852.4,1851.7,5.12097126]
[1771868154993,0.79026833,1852.3,1851.7,5.12097126]
[1771868155195,0.79026833,1852.2,1851.7,5.12097126]
[1771868155395,5.44118053,1852.4,1851.7,5.12097126]
[1771868155597,5.96118294,1852.3,1851.7,5.12097126]
[1771868155799,5.96118294,1852.2,1851.7,5.12097126]
[1771868156100,5.17124053,1852.2,1851.7,5.12097126]
[1771868156497,5.17124053,1852.0,1851.7,0.00440524]
[1771868156797,5.17124053,1852.3,1851.7,5.12097126]
[1771868156999,0.78988673,1852.2,1851.7,5.12097126]
[1771868157296,5.44118053,1852.5,1851.7,5.12097126]
[1771868157498,5.17124053,1852.0,1851.3,5.11656602]
[1771868157801,0.78987554,1851.9,1851.3,5.11656602]
[1771868158001,5.17124053,1852.4,1851.3,5.11656602]
[1771868158196,0.78618715,1852.3,1851.5,5.11656602]
[1771868158392,0.78618715,1852.2,1851.5,5.11656602]
[1771868158701,0.78618715,1852.1,1851.5,5.1223816]
[1771868158904,5.17124053,1852.3,1851.5,5.1223816]
[1771868159103,5.95501561,1852.2,1851.5,5.1223816]
[1771868159301,0.78377508,1852.1,1851.5,5.1223816]
[1771868159502,5.17124053,1852.4,1851.5,5.1223816]
[1771868160803,5.17124053,1851.8,1851.0,5.11656602]
[1771868161499,5.17124053,1851.8,1850.8,5.11656602]
[1771868161803,5.17124053,1851.8,1850.8,5.12044928]
[1771868162199,5.17124053,1851.6,1850.8,5.12044928]
[1771868162498,0.27004,1851.8,1850.2,5.38682602]
[1771868162803,5.17124053,1851.6,1850.5,5.11656602]
[1771868163005,5.17124053,1851.2,1850.3,12.0334669]
[1771868163201,5.17124053,1851.0,1850.1,5.11656602]
[1771868163402,5.17576579,1851.0,1850.1,5.1219339]
[1771868164604,5.17124053,1850.8,1850.1,0.00536788]
[1771868164904,5.17124053,1850.8,1849.6,4.97010602]
[1771868165105,5.17124053,1850.8,1849.8,5.11656602]
[1771868165702,5.17124053,1850.8,1849.8,5.12130581]
[1771868165897,5.17124053,1850.6,1849.1,0.27042]
[1771868166097,6.6468,1850.7,1848.7,5.11656602]
[1771868166098,5.17124053,1850.0,1848.7,5.11656602]
[1771868166306,5.17124053,1850.9,1849.4,5.11656602]
[1771868166503,5.17124053,1850.9,1849.8,5.11656602]
[1771868167002,5.17124053,1850.7,1849.8,0.00473833]
[1771868167301,6.65058526,1851.0,1849.8,0.00473833]
[1771868167302,0.00452526,1851.0,1849.8,5.12130435]
[1771868167506,5.17124053,1850.9,1849.8,5.12130435]
[1771868168109,0.00452526,1851.0,1850.0,5.11656602]
[1771868168110,5.17576579,1851.0,1850.0,5.11656602]
[1771868170610,5.17576579,1851.0,1849.8,0.00473833]
[1771868170611,5.17124053,1850.9,1849.8,0.00473833]
[1771868170916,5.17124053,1850.3,1848.7,5.11656602]
[1771868171207,5.17124053,1849.9,1848.7,5.11656602]
[1771868171407,3.46427066,1850.1,1848.4,5.11656602]
[1771868171408,5.17124053,1849.7,1848.4,5.11656602]
[1771868171609,5.17124053,1849.5,1848.4,5.11656602]
[1771868172010,5.17747569,1849.5,1848.4,5.12341751]
[1771868172611,5.17747569,1849.5,1848.4,0.00685149]
[1771868172913,5.17124053,1849.3,1848.4,0.00685149]
[1771868173510,5.17124053,1849.3,1847.8,5.11656602]
[1771868173711,5.17124053,1849.1,1847.8,5.11656602]
[1771868174310,5.17124053,1849.1,1848.0,5.11656602]
[1771868174515,5.17124053,1849.1,1848.0,5.12344737]
[1771868175315,5.17124053,1849.1,1848.2,5.11656602]
[1771868176015,0.00623516,1849.5,1848.4,5.11656602]
[1771868176221,5.17747569,1849.5,1848.6,5.11656602]
[1771868176818,5.17747569,1849.5,1848.1,5.11656602]
[1771868177324,5.17747569,1849.5,1848.4,5.11656602]
[1771868178820,5.17747569,1849.5,1848.6,4.92112712]
[1771868179013,0.00623516,1849.5,1848.6,4.92112712]
[1771868179213,5.27225007,1849.5,1848.6,4.92112712]
[1771868180923,5.27225007,1849.5,1848.1,5.49985508]
[1771868181124,5.27225007,1849.5,1848.3,5.49985508]
[1771868181819,5.54262007,1849.5,1848.1,5.49985508]
[1771868182027,5.0909738,1849.2,1848.0,0.00688135]
[1771868182422,5.0909738,1849.2,1848.0,5.50673643]
[1771868184122,5.0909738,1849.0,1847.3,0.85160819]
[1771868184326,5.0909738,1848.8,1847.4,5.77052508]
[1771868185128,5.0909738,1848.8,1847.4,5.77511837]
[1771868185628,5.0909738,1848.4,1847.4,0.00459329]
[1771868186025,10.11753066,1848.9,1847.4,0.00459329]
[1771868186026,5.0909738,1848.2,1847.4,0.00459329]
[1771868186325,5.09656673,1848.2,1847.4,0.00459329]
[1771868186526,5.0909738,1848.0,1847.4,0.00459329]
[1771868186724,5.0909738,1848.0,1847.3,0.85160819]
[1771868186926,5.0909738,1848.0,1846.9,5.77059508]
[1771868187733,5.0909738,1848.0,1846.9,5.77731141]
[1771868189529,5.0909738,1847.8,1846.9,5.50657141]
[1771868189829,0.00559293,1848.2,1847.2,5.77055508]
[1771868190024,5.09656673,1848.2,1847.2,5.77055508]
[1771868196339,0.00559293,1848.2,1847.4,5.77052508]
[1771868196934,5.0909738,1849.0,1847.6,5.77049508]
[1771868197237,0.27043,1849.1,1847.6,5.77049508]
[1771868197238,5.0909738,1848.8,1847.6,5.77049508]
[1771868197438,5.0909738,1848.7,1847.9,5.49985508]
[1771868197633,5.0909738,1848.7,1847.8,5.49985508]
[1771868197839,5.09692657,1848.7,1847.8,5.49985508]
[1771868198036,5.09692657,1848.7,1848.0,5.49985508]
[1771868198237,0.00595277,1848.7,1848.0,5.49985508]
[1771868198536,5.09692657,1848.7,1848.0,5.49985508]
[1771868199638,0.00595277,1848.7,1848.2,5.49985508]
[1771868199839,5.0909738,1848.9,1848.2,5.5054125]
[1771868200141,0.75593138,1848.8,1848.2,5.5054125]
[1771868200341,0.75593138,1848.7,1848.2,5.5054125]
[1771868200637,5.0909738,1848.9,1848.2,5.5054125]
[1771868200841,5.84831541,1848.8,1848.2,0.00555742]
[1771868201039,0.75734161,1848.7,1848.2,5.5054125]
[1771868201241,5.0909738,1848.7,1847.3,5.49985508]
[1771868201631,5.0909738,1848.7,1847.4,6.98546172]
[1771868201836,5.0909738,1848.7,1847.5,5.49985508]
[1771868202244,5.0909738,1848.5,1847.5,5.50663865]
[1771868202435,5.0909738,1848.3,1847.5,0.00678357]
[1771868202836,5.0909738,1848.1,1847.5,0.00678357]
[1771868205948,5.0909738,1848.3,1847.5,5.50663865]
[1771868206246,0.00591812,1848.9,1847.7,5.49985508]
[1771868206247,5.0909738,1848.8,1847.7,5.49985508]
[1771868207848,5.0909738,1848.8,1847.9,5.37862697]
[1771868209450,5.51326301,1848.6,1847.9,5.37862697]
[1771868209650,5.51326301,1848.6,1847.6,5.37862697]
[1771868210252,5.51326301,1848.6,1847.8,5.37862697]
[1771868211442,3.75026581,1848.8,1847.5,5.38541054]
[1771868211443,5.51326301,1848.4,1847.5,5.38541054]
[1771868211652,5.51326301,1848.2,1847.5,0.00678357]
[1771868213254,5.51326301,1848.0,1847.5,0.00678357]
[1771868213450,5.51326301,1847.8,1847.5,0.00678357]
[1771868213752,5.51326301,1847.8,1847.2,5.37862697]
[1771868213753,6.26066078,1847.7,1847.0,5.37862697]
[1771868213955,0.74739777,1847.6,1847.0,5.37862697]
[1771868214249,5.51326301,1847.7,1847.0,5.37862697]
[1771868214457,0.74754115,1847.6,1847.0,5.37862697]
[1771868214650,6.26080416,1847.5,1847.0,5.38257035]
[1771868214958,0.74754358,1847.4,1847.0,5.38257035]
[1771868215149,0.00389274,1847.6,1847.0,5.38257035]
[1771868215350,0.7477264,1847.5,1847.0,5.38257035]
[1771868215550,0.00389274,1847.6,1847.0,5.38257035]
[1771868217056,5.51326301,1848.4,1847.4,5.37862697]
[1771868217658,5.51326301,1848.4,1847.1,0.27071]
[1771868217858,5.51326301,1848.4,1847.2,5.37862697]
[1771868218156,5.51744981,1848.4,1847.2,5.37862697]
[1771868219758,5.78798981,1848.4,1847.2,5.37862697]
[1771868220351,5.78798981,1848.4,1847.4,5.37862697]
[1771868221256,5.51744981,1848.4,1847.2,5.37862697]
[1771868221450,5.51744981,1848.4,1847.0,0.00394338]
[1771868221451,5.51326301,1848.0,1847.0,5.38257035]
[1771868221656,3.47978581,1848.2,1847.0,5.38257035]
[1771868221657,5.51326301,1847.8,1847.0,5.38257035]
[1771868222358,5.51326301,1848.2,1847.2,5.37862697]
[1771868222554,5.51326301,1848.2,1847.1,0.27072]
[1771868222755,5.51326301,1848.0,1847.0,5.38257035]
[1771868222951,5.51326301,1847.8,1847.0,0.00394338]
[1771868223152,5.51326301,1847.5,1846.7,5.37862697]
[1771868223554,5.51326301,1848.1,1847.1,3.75048581]
[1771868223762,5.51326301,1848.1,1847.6,5.37862697]
[1771868224152,5.51326301,1848.1,1847.6,5.38308571]
[1771868224355,5.51326301,1848.1,1847.6,0.00445874]
[1771868224563,5.51326301,1848.1,1847.2,5.37862697]
[1771868224956,5.51326301,1848.1,1846.5,3.47978581]
[1771868225260,5.51326301,1848.1,1845.7,6.66462]
[1771868225261,6.66588,1845.4,1843.2,0.34148663]
[1771868225455,6.93919,1844.8,1843.3,5.61255817]
[1771868225659,6.93913,1844.8,1843.3,5.61255817]
[1771868225859,6.93913,1844.8,1842.6,6.67594]
[1771868225860,5.51326301,1843.5,1842.1,5.37862697]
[1771868226055,5.51326301,1843.5,1842.3,5.37862697]
[1771868226255,5.51326301,1843.8,1842.7,5.37862697]
[1771868226461,5.51326301,1843.6,1842.7,5.37862697]
[1771868226665,5.51326301,1843.9,1842.9,5.37862697]
[1771868226861,5.51326301,1843.8,1842.9,5.38246721]
[1771868227057,5.51326301,1843.8,1843.0,9.6951424]
[1771868227462,5.51326301,1843.8,1843.0,3.45459543]
[1771868227664,0.0063511,1843.9,1843.2,5.37862697]
[1771868227860,0.15,1844.0,1843.2,5.37862697]
[1771868228059,5.51326301,1845.0,1843.7,5.37862697]
[1771868228366,5.51326301,1846.2,1844.3,5.37862697]
[1771868228556,5.51326301,1846.0,1844.5,5.37862697]
[1771868228761,5.51326301,1845.8,1844.5,5.37862697]
[1771868228964,5.51860542,1845.8,1844.6,8.6832224]
[1771868229764,5.51860542,1845.8,1844.7,5.37862697]
[1771868230257,5.51860542,1845.8,1844.7,3.30459543]
[1771868230258,5.51326301,1845.4,1844.7,3.30459543]
[1771868230563,5.51326301,1845.4,1844.5,0.00623531]
[1771868230564,5.51326301,1845.4,1844.5,5.38486228]
[1771868230867,5.51326301,1845.4,1844.6,3.30459543]
[1771868231265,5.51326301,1845.4,1844.5,0.00623531]
[1771868231464,5.51326301,1845.4,1844.6,3.30459543]
[1771868232068,5.51326301,1845.2,1844.1,5.37862697]
[1771868232267,5.51326301,1844.8,1843.9,5.37862697]
[1771868232471,5.51326301,1844.8,1843.3,5.37862697]
[1771868232864,5.51326301,1844.7,1843.5,5.37862697]
[1771868233064,5.51326301,1844.7,1843.5,5.38484701]
[1771868233264,5.51326301,1844.7,1843.7,5.37862697]
[1771868233465,5.51326301,1845.2,1843.8,5.37862697]
[1771868233670,5.51326301,1845.2,1843.9,5.37862697]
[1771868233971,4.66930436,1845.8,1843.9,5.37862697]